[Event "*** Titled Tuesday Blitz"]
[Site "Chess.com"]
[Date "2021.03.16"]
[Round "1"]
[White "gxbg2000"]
[Black "djano"]
[Result "0-1"]
[WhiteElo "1961"]
[BlackElo "2498"]
[TimeControl "180+1"]
[EndTime "10:05:33 PDT"]
[Termination "djano won by resignation"]

1. e4 {[%clk 0:02:59.9]} 1... c5 {[%clk 0:02:59.5]} 2. Nf3 {[%clk 0:02:58.9]}
2... g6 {[%clk 0:02:59.9]} 3. d4 {[%clk 0:02:58.6]} 3... cxd4 {[%clk 0:03:00.8]}
4. Nxd4 {[%clk 0:02:58.7]} 4... Nc6 {[%clk 0:03:00.4]} 5. Nxc6 {[%clk
0:02:57.9]} 5... bxc6 {[%clk 0:03:00.4]} 6. Bd3 {[%clk 0:02:54.8]} 6... Bg7
{[%clk 0:02:55]} 7. c3 {[%clk 0:02:53.6]} 7... d6 {[%clk 0:02:54]} 8. O-O {[%clk
0:02:52.9]} 8... Nf6 {[%clk 0:02:54.4]} 9. Na3 {[%clk 0:02:15.2]} 9... O-O
{[%clk 0:02:51.9]} 10. Nc2 {[%clk 0:02:15]} 10... Ng4 {[%clk 0:02:43.7]} 11. h3
{[%clk 0:02:12.8]} 11... Ne5 {[%clk 0:02:44]} 12. Be3 {[%clk 0:02:10.1]} 12...
Nxd3 {[%clk 0:02:31.7]} 13. Qxd3 {[%clk 0:02:09.5]} 13... Qc7 {[%clk 0:02:27.2]}
14. Rad1 {[%clk 0:02:04.9]} 14... a5 {[%clk 0:02:26]} 15. b3 {[%clk 0:02:01.6]}
15... a4 {[%clk 0:02:18.3]} 16. Rfe1 {[%clk 0:01:59.4]} 16... axb3 {[%clk
0:02:17.4]} 17. axb3 {[%clk 0:01:58.9]} 17... Ba6 {[%clk 0:02:15.3]} 18. c4
{[%clk 0:01:58.3]} 18... Rfb8 {[%clk 0:02:08.4]} 19. Bd4 {[%clk 0:01:51.5]}
19... e5 {[%clk 0:02:08.1]} 20. Be3 {[%clk 0:01:47.2]} 20... Bf8 {[%clk
0:02:08.2]} 21. Bd2 {[%clk 0:01:43.2]} 21... d5 {[%clk 0:01:53.5]} 22. exd5
{[%clk 0:01:21]} 22... cxd5 {[%clk 0:01:54.4]} 23. Rb1 {[%clk 0:01:01.4]} 23...
dxc4 {[%clk 0:01:52.1]} 24. bxc4 {[%clk 0:01:01]} 24... Bxc4 {[%clk 0:01:45.2]}
25. Qc3 {[%clk 0:00:58.8]} 25... Bd6 {[%clk 0:01:41.8]} 26. Ne3 {[%clk
0:00:57.3]} 26... Be6 {[%clk 0:01:36.5]} 27. Qxc7 {[%clk 0:00:56.3]} 27... Bxc7
{[%clk 0:01:37.4]} 28. Rxb8+ {[%clk 0:00:56.2]} 28... Rxb8 {[%clk 0:01:37.5]}
29. Rc1 {[%clk 0:00:56.3]} 29... Bb6 {[%clk 0:01:32.3]} 30. Nc4 {[%clk
0:00:53.9]} 30... Bd4 {[%clk 0:01:32.2]} 31. Be3 {[%clk 0:00:50.5]} 31... Rc8
{[%clk 0:01:29.3]} 32. Nd6 {[%clk 0:00:49.5]} 32... Rxc1+ {[%clk 0:01:23.3]} 33.
Bxc1 {[%clk 0:00:48.8]} 33... Kf8 {[%clk 0:01:19.8]} 34. Kf1 {[%clk 0:00:48.3]}
34... Ke7 {[%clk 0:01:18.4]} 35. Nb5 {[%clk 0:00:46.7]} 35... Bc4+ {[%clk
0:01:17.6]} 0-1

[Event "*** Titled Tuesday Blitz"]
[Site "Chess.com"]
[Date "2021.03.16"]
[Round "1"]
[White "xberli"]
[Black "GMJustin"]
[Result "1-0"]
[WhiteElo "2616"]
[BlackElo "2287"]
[TimeControl "180+1"]
[EndTime "10:05:35 PDT"]
[Termination "xberli won on time"]

1. e4 {[%clk 0:02:56.8]} 1... c5 {[%clk 0:02:52.3]} 2. Nf3 {[%clk 0:02:56.1]}
2... d6 {[%clk 0:02:51.4]} 3. d4 {[%clk 0:02:56.2]} 3... cxd4 {[%clk 0:02:51]}
4. Nxd4 {[%clk 0:02:57.1]} 4... Nf6 {[%clk 0:02:50.9]} 5. Nc3 {[%clk 0:02:57.7]}
5... Nc6 {[%clk 0:02:51]} 6. Bg5 {[%clk 0:02:57.5]} 6... e6 {[%clk 0:02:50.1]}
7. Qd2 {[%clk 0:02:57.6]} 7... Be7 {[%clk 0:02:49.1]} 8. O-O-O {[%clk
0:02:57.7]} 8... O-O {[%clk 0:02:44.5]} 9. f4 {[%clk 0:02:57.2]} 9... h6 {[%clk
0:02:30.9]} 10. h4 {[%clk 0:02:33.3]} 10... e5 {[%clk 0:02:22]} 11. Nf3 {[%clk
0:02:26.1]} 11... Bg4 {[%clk 0:02:07.4]} 12. Be2 {[%clk 0:02:07.6]} 12... Qa5
{[%clk 0:01:51.7]} 13. Kb1 {[%clk 0:02:04]} 13... Bxf3 {[%clk 0:01:18.3]} 14.
gxf3 {[%clk 0:01:58.8]} 14... Nd4 {[%clk 0:01:13.1]} 15. fxe5 {[%clk 0:01:46.4]}
15... dxe5 {[%clk 0:00:28.6]} 16. Bxh6 {[%clk 0:01:43.4]} 16... Kh7 {[%clk
0:00:25.6]} 17. Bxg7 {[%clk 0:01:41.9]} 17... Kxg7 {[%clk 0:00:25]} 18. Rdg1+
{[%clk 0:01:33.5]} 18... Kh7 {[%clk 0:00:24.6]} 19. f4 {[%clk 0:01:22.6]} 19...
Rg8 {[%clk 0:00:20.6]} 20. fxe5 {[%clk 0:01:16.1]} 20... Qxa2+ {[%clk
0:00:11.5]} 21. Nxa2 {[%clk 0:01:14.9]} 1-0

[Event "*** Titled Tuesday Blitz"]
[Site "Chess.com"]
[Date "2021.03.16"]
[Round "1"]
[White "KuzubovYuriy"]
[Black "HackingKid98"]
[Result "1-0"]
[WhiteElo "2862"]
[BlackElo "2457"]
[TimeControl "180+1"]
[EndTime "10:05:37 PDT"]
[Termination "KuzubovYuriy won on time"]

1. d4 {[%clk 0:02:59.6]} 1... Nf6 {[%clk 0:02:59.3]} 2. Nf3 {[%clk 0:02:57.6]}
2... d5 {[%clk 0:02:57.4]} 3. c4 {[%clk 0:02:57.6]} 3... c6 {[%clk 0:02:57]} 4.
Nc3 {[%clk 0:02:57.7]} 4... e6 {[%clk 0:02:55.8]} 5. e3 {[%clk 0:02:51.9]} 5...
Nbd7 {[%clk 0:02:53.9]} 6. Be2 {[%clk 0:02:51]} 6... dxc4 {[%clk 0:02:51.4]} 7.
Bxc4 {[%clk 0:02:51.5]} 7... b5 {[%clk 0:02:51.6]} 8. Be2 {[%clk 0:02:50]} 8...
Bd6 {[%clk 0:02:51.8]} 9. O-O {[%clk 0:02:40.4]} 9... O-O {[%clk 0:02:51.7]} 10.
Bd2 {[%clk 0:02:37.3]} 10... Bb7 {[%clk 0:02:50.7]} 11. Rc1 {[%clk 0:02:30.9]}
11... a6 {[%clk 0:02:48.9]} 12. e4 {[%clk 0:02:24.8]} 12... e5 {[%clk
0:02:48.1]} 13. Bg5 {[%clk 0:02:21.5]} 13... Qe7 {[%clk 0:02:41.3]} 14. dxe5
{[%clk 0:02:09.7]} 14... Nxe5 {[%clk 0:01:37.3]} 15. Nxe5 {[%clk 0:02:09.5]}
15... Bxe5 {[%clk 0:01:21.1]} 16. f4 {[%clk 0:02:09.3]} 16... Bxc3 {[%clk
0:01:20.3]} 17. Rxc3 {[%clk 0:02:10.2]} 17... Qxe4 {[%clk 0:01:20]} 18. Bxf6
{[%clk 0:02:09.8]} 18... gxf6 {[%clk 0:01:20.9]} 19. Rg3+ {[%clk 0:02:09.9]}
19... Kh8 {[%clk 0:01:19.2]} 20. Bd3 {[%clk 0:02:10.5]} 20... Qd4+ {[%clk
0:00:36.9]} 21. Kh1 {[%clk 0:02:10.4]} 21... c5 {[%clk 0:00:08]} 22. Qh5 {[%clk
0:02:03.8]} 22... Be4 {[%clk 0:00:05.9]} 23. Bxe4 {[%clk 0:01:45]} 23... Qxe4
{[%clk 0:00:06.8]} 24. Qh6 {[%clk 0:01:44.9]} 24... Qg6 {[%clk 0:00:04.6]} 25.
Rxg6 {[%clk 0:01:44.3]} 25... fxg6 {[%clk 0:00:05.5]} 26. f5 {[%clk 0:01:44.5]}
26... g5 {[%clk 0:00:04.6]} 27. Re1 {[%clk 0:01:40.8]} 27... Rad8 {[%clk
0:00:03.4]} 28. h4 {[%clk 0:01:38.2]} 1-0

[Event "*** Titled Tuesday Blitz"]
[Site "Chess.com"]
[Date "2021.03.16"]
[Round "1"]
[White "kubal123"]
[Black "MoonlighT89"]
[Result "0-1"]
[WhiteElo "2261"]
[BlackElo "2607"]
[TimeControl "180+1"]
[EndTime "10:05:40 PDT"]
[Termination "MoonlighT89 won on time"]

1. e4 {[%clk 0:02:58.3]} 1... c5 {[%clk 0:02:59.5]} 2. Nf3 {[%clk 0:02:57.3]}
2... e6 {[%clk 0:02:59.9]} 3. d4 {[%clk 0:02:56.9]} 3... cxd4 {[%clk 0:03:00.8]}
4. Nxd4 {[%clk 0:02:56.8]} 4... Nc6 {[%clk 0:03:01.5]} 5. Nc3 {[%clk 0:02:53.1]}
5... Qc7 {[%clk 0:03:01.5]} 6. Be3 {[%clk 0:02:52.3]} 6... a6 {[%clk 0:03:01.5]}
7. Qd2 {[%clk 0:02:49.9]} 7... Nf6 {[%clk 0:03:01.6]} 8. O-O-O {[%clk
0:02:47.6]} 8... Be7 {[%clk 0:03:01.8]} 9. f3 {[%clk 0:02:44.2]} 9... b5 {[%clk
0:02:59.1]} 10. Kb1 {[%clk 0:02:39.9]} 10... Nxd4 {[%clk 0:02:55.7]} 11. Bxd4
{[%clk 0:02:34.2]} 11... Bb7 {[%clk 0:02:53]} 12. g4 {[%clk 0:02:23.2]} 12...
Rc8 {[%clk 0:02:14.5]} 13. h4 {[%clk 0:01:31.5]} 13... O-O {[%clk 0:01:59.8]}
14. h5 {[%clk 0:01:09.2]} 14... e5 {[%clk 0:01:48.9]} 15. Be3 {[%clk 0:00:51.8]}
15... d5 {[%clk 0:01:48.2]} 16. Nxd5 {[%clk 0:00:22.1]} 16... Bxd5 {[%clk
0:01:33.6]} 17. exd5 {[%clk 0:00:19.2]} 17... Nxd5 {[%clk 0:01:31.1]} 18. Bd3
{[%clk 0:00:06.6]} 18... Rfd8 {[%clk 0:01:22]} 19. Bf2 {[%clk 0:00:03.4]} 19...
Nb4 {[%clk 0:01:13.5]} 0-1

[Event "*** Titled Tuesday Blitz"]
[Site "Chess.com"]
[Date "2021.03.16"]
[Round "1"]
[White "profofchess"]
[Black "platy3"]
[Result "0-1"]
[WhiteElo "2431"]
[BlackElo "2809"]
[TimeControl "180+1"]
[EndTime "10:05:44 PDT"]
[Termination "platy3 won by resignation"]

1. e4 {[%clk 0:03:00.4]} 1... c5 {[%clk 0:02:57.1]} 2. Nf3 {[%clk 0:03:00.3]}
2... e6 {[%clk 0:02:57.6]} 3. c3 {[%clk 0:03:00.4]} 3... Nf6 {[%clk 0:02:57.1]}
4. Bd3 {[%clk 0:03:00]} 4... d5 {[%clk 0:02:55.8]} 5. e5 {[%clk 0:03:00.4]} 5...
Nfd7 {[%clk 0:02:56.1]} 6. Bc2 {[%clk 0:03:01]} 6... d4 {[%clk 0:02:56.4]} 7.
O-O {[%clk 0:02:51.8]} 7... Nc6 {[%clk 0:02:55.9]} 8. Ba4 {[%clk 0:02:50.6]}
8... Qc7 {[%clk 0:02:54.8]} 9. Re1 {[%clk 0:02:49]} 9... g5 {[%clk 0:02:49.5]}
10. h3 {[%clk 0:02:21.8]} 10... Rg8 {[%clk 0:02:46.7]} 11. cxd4 {[%clk
0:02:11.5]} 11... cxd4 {[%clk 0:02:44.1]} 12. d3 {[%clk 0:01:58.8]} 12... g4
{[%clk 0:02:40.6]} 13. hxg4 {[%clk 0:01:59]} 13... Rxg4 {[%clk 0:02:41.1]} 14.
Nbd2 {[%clk 0:01:56.7]} 14... Nc5 {[%clk 0:02:34.1]} 15. Bxc6+ {[%clk
0:01:33.1]} 15... Qxc6 {[%clk 0:02:29.4]} 16. Nf1 {[%clk 0:01:17.6]} 16... b6
{[%clk 0:02:24.8]} 17. N1h2 {[%clk 0:01:16.5]} 17... Rg8 {[%clk 0:02:23.5]} 18.
b4 {[%clk 0:01:09.1]} 18... Nd7 {[%clk 0:02:21.7]} 19. Re4 {[%clk 0:01:00.9]}
19... Bb7 {[%clk 0:02:19.4]} 20. Nxd4 {[%clk 0:00:59.2]} 20... Qd5 {[%clk
0:02:19.6]} 21. Bd2 {[%clk 0:00:47.6]} 21... a5 {[%clk 0:02:18.6]} 22. bxa5
{[%clk 0:00:47]} 22... Nc5 {[%clk 0:02:15.9]} 23. Rg4 {[%clk 0:00:46.8]} 23...
Rxg4 {[%clk 0:02:05.3]} 24. Qxg4 {[%clk 0:00:46.8]} 24... h5 {[%clk 0:02:03.5]}
25. Nb5 {[%clk 0:00:18.1]} 25... hxg4 {[%clk 0:01:58.5]} 26. Nc7+ {[%clk
0:00:18.3]} 26... Kd8 {[%clk 0:01:57.6]} 27. Nxd5 {[%clk 0:00:19.2]} 27... Bxd5
{[%clk 0:01:58.4]} 28. Nxg4 {[%clk 0:00:18.9]} 28... bxa5 {[%clk 0:01:57.6]} 29.
d4 {[%clk 0:00:16.9]} 29... Ne4 {[%clk 0:01:56.6]} 30. Be3 {[%clk 0:00:16.2]}
30... Bb4 {[%clk 0:01:56.3]} 31. Rc1 {[%clk 0:00:12.1]} 31... Nc3 {[%clk
0:01:55]} 32. Rc2 {[%clk 0:00:12]} 32... Bxa2 {[%clk 0:01:52.8]} 33. Nf6 {[%clk
0:00:10.8]} 33... Bb3 {[%clk 0:01:51.6]} 34. Rb2 {[%clk 0:00:09.6]} 34... a4
{[%clk 0:01:52]} 35. g4 {[%clk 0:00:08.8]} 35... Nd5 {[%clk 0:01:47.8]} 36. Nxd5
{[%clk 0:00:08.3]} 36... exd5 {[%clk 0:01:48.7]} 37. Bg5+ {[%clk 0:00:08]} 37...
Kd7 {[%clk 0:01:48.8]} 38. Rb1 {[%clk 0:00:08.2]} 38... Bc3 {[%clk 0:01:48.4]}
39. Bc1 {[%clk 0:00:04.8]} 39... Bxd4 {[%clk 0:01:48]} 0-1

[Event "*** Titled Tuesday Blitz"]
[Site "Chess.com"]
[Date "2021.03.16"]
[Round "1"]
[White "Msb2"]
[Black "Bodnar_Mykola"]
[Result "1-0"]
[WhiteElo "2914"]
[BlackElo "2475"]
[TimeControl "180+1"]
[EndTime "10:05:46 PDT"]
[Termination "Msb2 won by resignation"]

1. d4 {[%clk 0:03:00.9]} 1... Nf6 {[%clk 0:02:56.4]} 2. Nf3 {[%clk 0:02:58.5]}
2... b6 {[%clk 0:02:54.9]} 3. e3 {[%clk 0:02:56.4]} 3... Bb7 {[%clk 0:02:54.9]}
4. Bd3 {[%clk 0:02:56.8]} 4... g6 {[%clk 0:02:53.2]} 5. O-O {[%clk 0:02:56.7]}
5... Bg7 {[%clk 0:02:53.6]} 6. c4 {[%clk 0:02:56.9]} 6... e6 {[%clk 0:02:52.3]}
7. Nc3 {[%clk 0:02:56.9]} 7... c5 {[%clk 0:02:48.9]} 8. e4 {[%clk 0:02:46.9]}
8... cxd4 {[%clk 0:02:42.3]} 9. Nxd4 {[%clk 0:02:47.8]} 9... O-O {[%clk
0:02:39.2]} 10. Bg5 {[%clk 0:02:47]} 10... h6 {[%clk 0:02:38.6]} 11. Be3 {[%clk
0:02:46.9]} 11... Nc6 {[%clk 0:02:24.4]} 12. Ndb5 {[%clk 0:02:35.2]} 12... d5
{[%clk 0:02:21.5]} 13. cxd5 {[%clk 0:02:31.1]} 13... exd5 {[%clk 0:02:21.7]} 14.
exd5 {[%clk 0:02:27.4]} 14... Nxd5 {[%clk 0:02:11.3]} 15. Nxd5 {[%clk
0:02:18.8]} 15... Qxd5 {[%clk 0:02:10.7]} 16. Nc7 {[%clk 0:02:19.3]} 16... Qe5
{[%clk 0:01:55.8]} 17. Nxa8 {[%clk 0:02:16.3]} 17... Bxa8 {[%clk 0:01:56.3]} 18.
Qa4 {[%clk 0:02:04.8]} 18... Qxb2 {[%clk 0:01:53.2]} 19. Rac1 {[%clk 0:01:47.1]}
19... Nb4 {[%clk 0:01:48.7]} 20. Rb1 {[%clk 0:01:33.1]} 20... Qc3 {[%clk
0:01:47.6]} 21. Rb3 {[%clk 0:01:33.3]} 21... Qxd3 {[%clk 0:01:42.6]} 22. Rxd3
{[%clk 0:01:31.9]} 22... Nxd3 {[%clk 0:01:43.5]} 23. Qxa7 {[%clk 0:01:31.8]}
23... b5 {[%clk 0:01:43.9]} 24. Rd1 {[%clk 0:01:30.2]} 24... Be4 {[%clk
0:01:42.4]} 25. f3 {[%clk 0:01:28.2]} 25... Bf5 {[%clk 0:01:42.4]} 26. g4 {[%clk
0:01:27.1]} 26... Nb2 {[%clk 0:01:42.9]} 27. Rd5 {[%clk 0:01:20.7]} 27... Bd3
{[%clk 0:01:41.3]} 28. Bd4 {[%clk 0:01:19.2]} 28... Bc4 {[%clk 0:01:38.7]} 29.
Bxg7 {[%clk 0:01:16.7]} 29... Kxg7 {[%clk 0:01:39.1]} 30. Rd2 {[%clk 0:01:14]}
30... Na4 {[%clk 0:01:39.2]} 31. Kf2 {[%clk 0:01:13.8]} 31... Re8 {[%clk
0:01:37.8]} 32. h4 {[%clk 0:01:13.4]} 32... Kg8 {[%clk 0:01:38]} 33. Kg3 {[%clk
0:01:13.5]} 33... Nc3 {[%clk 0:01:38.1]} 34. Qd7 {[%clk 0:01:08.9]} 34... Ne2+
{[%clk 0:01:34.3]} 35. Kf2 {[%clk 0:01:08.2]} 35... Re6 {[%clk 0:01:34]} 36.
Qc8+ {[%clk 0:01:07.7]} 36... Kg7 {[%clk 0:01:32.8]} 37. Rd8 {[%clk 0:01:08.2]}
37... Nf4 {[%clk 0:01:16.4]} 38. Rg8+ {[%clk 0:01:05]} 38... Kf6 {[%clk
0:01:05.6]} 39. Qd8+ {[%clk 0:01:02.3]} 39... Ke5 {[%clk 0:01:05.8]} 40. Qc7+
{[%clk 0:01:01.4]} 40... Rd6 {[%clk 0:01:04.3]} 41. Rd8 {[%clk 0:01:00.9]} 41...
Nd3+ {[%clk 0:01:04.6]} 42. Kg3 {[%clk 0:01:00.3]} 1-0

[Event "*** Titled Tuesday Blitz"]
[Site "Chess.com"]
[Date "2021.03.16"]
[Round "1"]
[White "IwkooO"]
[Black "ellennilssen"]
[Result "1-0"]
[WhiteElo "2615"]
[BlackElo "2286"]
[TimeControl "180+1"]
[EndTime "10:05:50 PDT"]
[Termination "IwkooO won by resignation"]

1. e4 {[%clk 0:03:00.7]} 1... e5 {[%clk 0:02:56]} 2. Nf3 {[%clk 0:03:00.7]} 2...
Nf6 {[%clk 0:02:54.7]} 3. Nc3 {[%clk 0:02:59.9]} 3... Bc5 {[%clk 0:02:48.9]} 4.
Nxe5 {[%clk 0:02:53.8]} 4... Nc6 {[%clk 0:02:38.5]} 5. Nxc6 {[%clk 0:02:24.6]}
5... dxc6 {[%clk 0:02:39.4]} 6. Be2 {[%clk 0:02:24.9]} 6... h5 {[%clk
0:02:28.9]} 7. h3 {[%clk 0:02:07.8]} 7... Qd4 {[%clk 0:02:03.1]} 8. O-O {[%clk
0:02:07.5]} 8... Ng4 {[%clk 0:01:44.2]} 9. hxg4 {[%clk 0:01:26.9]} 9... hxg4
{[%clk 0:01:45.1]} 10. g3 {[%clk 0:01:27.4]} 10... Qe5 {[%clk 0:01:41.6]} 11.
Kg2 {[%clk 0:01:26.7]} 11... Be6 {[%clk 0:01:06]} 12. d3 {[%clk 0:01:18.4]}
12... g5 {[%clk 0:00:56.7]} 13. Bxg4 {[%clk 0:01:12.5]} 13... O-O-O {[%clk
0:00:39.7]} 14. Be3 {[%clk 0:01:09.2]} 14... Bxe3 {[%clk 0:00:35]} 15. fxe3
{[%clk 0:01:09]} 15... f5 {[%clk 0:00:25.4]} 16. Bxf5 {[%clk 0:01:07.5]} 16...
g4 {[%clk 0:00:18.2]} 17. Qxg4 {[%clk 0:01:01.8]} 17... Bd7 {[%clk 0:00:15.2]}
18. Bxd7+ {[%clk 0:01:01.1]} 18... Rxd7 {[%clk 0:00:16.1]} 19. Rf7 {[%clk
0:00:57.3]} 19... Rd8 {[%clk 0:00:13.7]} 20. Raf1 {[%clk 0:00:56.4]} 20... Kb8
{[%clk 0:00:12.7]} 21. Qxd7 {[%clk 0:00:55.1]} 1-0

[Event "*** Titled Tuesday Blitz"]
[Site "Chess.com"]
[Date "2021.03.16"]
[Round "1"]
[White "RamyresCoelho"]
[Black "Grieve72"]
[Result "0-1"]
[WhiteElo "2075"]
[BlackElo "2502"]
[TimeControl "180+1"]
[EndTime "10:05:50 PDT"]
[Termination "Grieve72 won by checkmate"]

1. e4 {[%clk 0:03:00.2]} 1... c5 {[%clk 0:02:59.1]} 2. Nf3 {[%clk 0:03:00]} 2...
e6 {[%clk 0:02:59.5]} 3. Nc3 {[%clk 0:02:57.4]} 3... Nc6 {[%clk 0:02:58.7]} 4.
g3 {[%clk 0:02:54.4]} 4... d5 {[%clk 0:02:56.7]} 5. exd5 {[%clk 0:02:52.9]} 5...
exd5 {[%clk 0:02:57.6]} 6. Bg2 {[%clk 0:02:53.2]} 6... Nf6 {[%clk 0:02:57.6]} 7.
d4 {[%clk 0:02:52.8]} 7... cxd4 {[%clk 0:02:55]} 8. Nxd4 {[%clk 0:02:53.7]} 8...
Bg4 {[%clk 0:02:52.3]} 9. f3 {[%clk 0:02:44.7]} 9... Bd7 {[%clk 0:02:48.3]} 10.
O-O {[%clk 0:02:37.7]} 10... Be7 {[%clk 0:02:48.1]} 11. Nxc6 {[%clk 0:02:36.4]}
11... bxc6 {[%clk 0:02:46.7]} 12. Be3 {[%clk 0:02:29.2]} 12... O-O {[%clk
0:02:46.2]} 13. Kh1 {[%clk 0:02:28.5]} 13... c5 {[%clk 0:02:40.1]} 14. Nxd5
{[%clk 0:02:24.9]} 14... Nxd5 {[%clk 0:02:29.2]} 15. Qxd5 {[%clk 0:02:24.4]}
15... Qc7 {[%clk 0:02:27.1]} 16. f4 {[%clk 0:02:03.9]} 16... Rab8 {[%clk
0:02:16.6]} 17. b3 {[%clk 0:01:57.7]} 17... Rfd8 {[%clk 0:02:14]} 18. Rad1
{[%clk 0:01:49.8]} 18... Bg4 {[%clk 0:02:11.8]} 19. Qe5 {[%clk 0:01:12.2]} 19...
Bd6 {[%clk 0:01:58.3]} 20. Rxd6 {[%clk 0:01:10.3]} 20... Qxd6 {[%clk 0:01:40.9]}
21. Qxd6 {[%clk 0:01:08.3]} 21... Rxd6 {[%clk 0:01:41.8]} 22. Bxc5 {[%clk
0:01:09.2]} 22... Rd2 {[%clk 0:01:26.9]} 23. Bxa7 {[%clk 0:01:04.1]} 23... Re8
{[%clk 0:01:26.8]} 24. c4 {[%clk 0:00:47.5]} 24... Ree2 {[%clk 0:01:19.6]} 25.
Rg1 {[%clk 0:00:14.9]} 25... Bf3 {[%clk 0:01:18.3]} 26. Bxf3 {[%clk 0:00:02.9]}
26... Rxh2# {[%clk 0:01:17.8]} 0-1

[Event "*** Titled Tuesday Blitz"]
[Site "Chess.com"]
[Date "2021.03.16"]
[Round "1"]
[White "JimmmyZhang"]
[Black "Maddie"]
[Result "1-0"]
[WhiteElo "2502"]
[BlackElo "2073"]
[TimeControl "180+1"]
[EndTime "10:05:57 PDT"]
[Termination "JimmmyZhang won by resignation"]

1. d4 {[%clk 0:03:00.9]} 1... d5 {[%clk 0:02:59.2]} 2. Nf3 {[%clk 0:02:58.7]}
2... Nf6 {[%clk 0:02:58.1]} 3. Bf4 {[%clk 0:02:58.1]} 3... c6 {[%clk 0:02:52.8]}
4. e3 {[%clk 0:02:55.7]} 4... Bg4 {[%clk 0:02:49.9]} 5. Nbd2 {[%clk 0:02:54.5]}
5... e6 {[%clk 0:02:48.4]} 6. h3 {[%clk 0:02:54]} 6... Bh5 {[%clk 0:02:46.7]} 7.
g4 {[%clk 0:02:53.2]} 7... Bg6 {[%clk 0:02:45.5]} 8. Ne5 {[%clk 0:02:53.7]} 8...
Bd6 {[%clk 0:02:40.6]} 9. h4 {[%clk 0:02:51.6]} 9... Be4 {[%clk 0:02:35.4]} 10.
f3 {[%clk 0:02:49.6]} 10... Bxe5 {[%clk 0:02:22.7]} 11. dxe5 {[%clk 0:02:44.6]}
11... Nxg4 {[%clk 0:01:53.9]} 12. fxe4 {[%clk 0:02:40.5]} 12... h5 {[%clk
0:01:45.5]} 13. Be2 {[%clk 0:02:36.7]} 13... Nh6 {[%clk 0:01:44]} 14. Bxh5
{[%clk 0:02:32.7]} 14... Nd7 {[%clk 0:01:18.4]} 15. Qf3 {[%clk 0:02:22.4]} 15...
dxe4 {[%clk 0:00:56.3]} 16. Nxe4 {[%clk 0:02:21.5]} 16... Qa5+ {[%clk
0:00:56.2]} 17. c3 {[%clk 0:02:19.4]} 17... Nf5 {[%clk 0:00:48.4]} 18. Bg4
{[%clk 0:02:08.2]} 18... Nxe5 {[%clk 0:00:45.4]} 19. Bxe5 {[%clk 0:02:05.8]}
19... Qxe5 {[%clk 0:00:44.5]} 20. Bxf5 {[%clk 0:02:06.1]} 20... exf5 {[%clk
0:00:45.1]} 21. Qxf5 {[%clk 0:02:04.2]} 21... Qxf5 {[%clk 0:00:42.6]} 22. Nd6+
{[%clk 0:02:03.6]} 22... Kd7 {[%clk 0:00:37.3]} 23. Nxf5 {[%clk 0:02:04.5]}
23... g6 {[%clk 0:00:37.3]} 24. O-O-O+ {[%clk 0:02:04.5]} 24... Ke6 {[%clk
0:00:35.1]} 25. Nd4+ {[%clk 0:02:03.9]} 25... Ke5 {[%clk 0:00:33.5]} 26. Rhf1
{[%clk 0:02:04.3]} 26... f6 {[%clk 0:00:33.1]} 27. Rf4 {[%clk 0:02:02.6]} 27...
f5 {[%clk 0:00:18.3]} 28. Nf3+ {[%clk 0:01:59.3]} 28... Kf6 {[%clk 0:00:18.4]}
29. e4 {[%clk 0:01:57.6]} 29... Rae8 {[%clk 0:00:17.4]} 30. exf5 {[%clk
0:01:54.9]} 30... gxf5 {[%clk 0:00:18.3]} 31. Nd4 {[%clk 0:01:31]} 31... Rh5
{[%clk 0:00:18.1]} 32. Rdf1 {[%clk 0:01:20.8]} 32... Re5 {[%clk 0:00:17.9]} 33.
Kc2 {[%clk 0:01:19.2]} 33... Re2+ {[%clk 0:00:17.6]} 34. Nxe2 {[%clk 0:01:18.5]}
1-0

[Event "*** Titled Tuesday Blitz"]
[Site "Chess.com"]
[Date "2021.03.16"]
[Round "1"]
[White "SilviusTiberius"]
[Black "PawnEatingZombie"]
[Result "1-0"]
[WhiteElo "2539"]
[BlackElo "2197"]
[TimeControl "180+1"]
[EndTime "10:06:03 PDT"]
[Termination "SilviusTiberius won on time"]

1. e4 {[%clk 0:02:58.3]} 1... c6 {[%clk 0:02:59.4]} 2. d4 {[%clk 0:02:57]} 2...
d5 {[%clk 0:03:00.3]} 3. exd5 {[%clk 0:02:56.7]} 3... cxd5 {[%clk 0:03:00.1]} 4.
Bd3 {[%clk 0:02:57.2]} 4... Nc6 {[%clk 0:02:59.6]} 5. c3 {[%clk 0:02:57.1]} 5...
Qc7 {[%clk 0:03:00.1]} 6. Ne2 {[%clk 0:02:51.3]} 6... Bg4 {[%clk 0:02:59.4]} 7.
O-O {[%clk 0:02:51.7]} 7... e6 {[%clk 0:02:58.8]} 8. Qe1 {[%clk 0:02:51.7]} 8...
Nf6 {[%clk 0:02:56.5]} 9. Bg5 {[%clk 0:02:50.5]} 9... Bd6 {[%clk 0:02:53.3]} 10.
f3 {[%clk 0:02:50.1]} 10... Bh5 {[%clk 0:02:52.7]} 11. Qh4 {[%clk 0:02:49.5]}
11... Bg6 {[%clk 0:02:41.3]} 12. Bxg6 {[%clk 0:02:49.2]} 12... fxg6 {[%clk
0:02:40.9]} 13. Bxf6 {[%clk 0:02:49.2]} 13... gxf6 {[%clk 0:02:37.5]} 14. Qxf6
{[%clk 0:02:49.4]} 14... Bxh2+ {[%clk 0:02:14.3]} 15. Kh1 {[%clk 0:02:47.7]}
15... Kd7 {[%clk 0:01:57.2]} 16. f4 {[%clk 0:02:41.3]} 16... Raf8 {[%clk
0:01:28.2]} 17. Qg7+ {[%clk 0:02:32.6]} 17... Ne7 {[%clk 0:01:28.4]} 18. Kxh2
{[%clk 0:02:31.4]} 18... Qb6 {[%clk 0:01:07.2]} 19. Nd2 {[%clk 0:02:17.1]} 19...
Rhg8 {[%clk 0:00:57.3]} 20. Qe5 {[%clk 0:02:09.8]} 20... Rf5 {[%clk 0:00:45]}
21. Qe3 {[%clk 0:02:06.5]} 21... g5 {[%clk 0:00:38]} 22. Nf3 {[%clk 0:02:00.9]}
22... gxf4 {[%clk 0:00:35.1]} 23. Ne5+ {[%clk 0:01:56.4]} 23... Kc8 {[%clk
0:00:32.6]} 24. Rxf4 {[%clk 0:01:49.2]} 24... Rh5+ {[%clk 0:00:28.1]} 25. Kg1
{[%clk 0:01:46.6]} 25... Rhg5 {[%clk 0:00:27.3]} 26. Rf2 {[%clk 0:01:33.1]}
26... Qxb2 {[%clk 0:00:24.8]} 27. Raf1 {[%clk 0:01:29.7]} 27... Nf5 {[%clk
0:00:21.4]} 28. Qh3 {[%clk 0:01:21.3]} 28... Qxa2 {[%clk 0:00:17.7]} 29. Nf4
{[%clk 0:01:16.7]} 29... Qb3 {[%clk 0:00:10.4]} 30. Nxe6 {[%clk 0:01:15.1]}
30... Ng3 {[%clk 0:00:02.5]} 31. Rf8+ {[%clk 0:01:12.4]} 1-0